bitfinex/quotes_BTCUSD_20250829
["timestamp","ask_amount","ask_price","bid_price","bid_amount"]
[1756458598580,1.41974958,109860.0,109850.0,0.09361632]
[1756458598777,1.41974958,109860.0,109850.0,0.27568277]
[1756458598778,1.24804709,109860.0,109850.0,0.27568277]
[1756458598986,0.027372,109860.0,109850.0,0.34631359]
[1756458599185,0.18204988,109860.0,109850.0,0.34631359]
[1756458599396,0.18404988,109860.0,109850.0,0.34631359]
[1756458599603,1.22267509,109860.0,109850.0,0.34631359]
[1756458599807,1.22267509,109860.0,109850.0,0.08829632]
[1756458600222,1.22467509,109860.0,109850.0,0.08829632]
[1756458600424,0.18208302,109840.0,109830.0,0.07067082]
[1756458600703,1.22070823,109840.0,109830.0,0.50366674]
[1756458600911,0.18208135,109850.0,109830.0,0.50898674]
[1756458601034,1.38329166,109850.0,109840.0,0.27037934]
[1756458601236,1.38325166,109850.0,109840.0,0.09361632]
[1756458601482,1.38325166,109850.0,109840.0,0.27569934]
[1756458601869,1.38325166,109850.0,109840.0,0.09361632]
[1756458602112,1.38325166,109850.0,109840.0,0.09152632]
[1756458602498,0.34462645,109850.0,109840.0,0.09152632]
[1756458602657,1.38325166,109850.0,109840.0,0.09152632]
[1756458602875,1.38262872,109850.0,109840.0,0.09152632]
[1756458603106,1.38262872,109850.0,109840.0,0.27360934]
[1756458603300,1.38262872,109850.0,109840.0,0.27569934]
[1756458603675,1.38262872,109850.0,109840.0,0.09152632]
[1756458603870,1.38262872,109850.0,109840.0,0.08829632]
[1756458604090,1.39956153,109850.0,109840.0,0.08829632]
[1756458605489,1.40014447,109850.0,109840.0,0.27569934]
[1756458607545,1.40014447,109850.0,109840.0,0.09361632]
[1756458608007,1.40014447,109850.0,109840.0,0.09152632]
[1756458608237,1.40014214,109850.0,109840.0,0.08829632]
[1756458608460,0.36151693,109850.0,109840.0,0.09152632]
[1756458608674,1.23762214,109850.0,109840.0,0.27569934]
[1756458608894,1.40010214,109850.0,109840.0,0.27569934]
[1756458610491,0.36147693,109850.0,109840.0,0.27569934]
[1756458610674,1.40010214,109850.0,109840.0,0.27569934]
[1756458611517,1.23762214,109850.0,109840.0,0.27569934]
[1756458611935,1.23761832,109850.0,109840.0,0.27569934]
[1756458612134,0.19899311,109850.0,109840.0,0.27569934]
[1756458612346,0.01692666,109850.0,109840.0,0.27569934]
[1756458612549,1.41963158,109860.0,109850.0,0.18206645]
[1756458612726,1.43656152,109860.0,109850.0,0.27568277]
[1756458612937,1.43656152,109860.0,109850.0,0.08829632]
[1756458613733,1.43756152,109860.0,109850.0,0.08829632]
[1756458613935,1.43856152,109860.0,109850.0,0.08829632]
[1756458615140,1.43852152,109860.0,109850.0,0.08833632]
[1756458616422,0.39989631,109860.0,109850.0,0.08833632]
[1756458616654,1.43852152,109860.0,109850.0,0.08833632]
[1756458617829,1.43852152,109860.0,109850.0,0.09156632]
[1756458618446,1.43852152,109860.0,109850.0,0.08833632]
[1756458619486,1.27608152,109860.0,109850.0,0.08833632]
[1756458619685,1.43844152,109860.0,109850.0,0.09156632]
[1756458621552,1.43844152,109860.0,109850.0,0.08833632]
[1756458622582,1.44692398,109860.0,109850.0,0.08833632]
[1756458623734,1.44692398,109860.0,109850.0,0.09156632]
[1756458626525,1.45328014,109860.0,109850.0,0.09156632]
[1756458626948,1.45320014,109860.0,109850.0,0.09369632]
[1756458627259,1.45320014,109860.0,109850.0,0.09156632]
[1756458627703,0.41457493,109860.0,109850.0,0.09156632]
[1756458627944,1.45320014,109860.0,109850.0,0.09156632]
[1756458628110,0.41457493,109860.0,109850.0,0.09156632]
[1756458628335,1.45320014,109860.0,109850.0,0.09156632]
[1756458629641,1.45320014,109860.0,109850.0,0.09369632]
[1756458630214,1.29092014,109860.0,109850.0,0.09369632]
[1756458630416,0.41453493,109860.0,109850.0,0.27576277]
[1756458630651,1.44680398,109860.0,109850.0,0.09369632]
[1756458632018,0.40817877,109860.0,109850.0,0.09369632]
[1756458632257,1.44680398,109860.0,109850.0,0.09369632]
[1756458632698,1.28456398,109860.0,109850.0,0.27576277]
[1756458632921,0.37166228,109860.0,109850.0,0.27576277]
[1756458633133,1.41028749,109860.0,109850.0,0.09369632]
[1756458633344,1.41031914,109860.0,109850.0,0.27576277]
[1756458633796,1.41031941,109860.0,109850.0,0.27576277]
[1756458634020,1.41031941,109860.0,109850.0,0.09369632]
[1756458634243,1.39335653,109860.0,109850.0,0.09156632]
[1756458634497,1.39971751,109860.0,109850.0,0.08833632]
[1756458634721,1.41668091,109860.0,109850.0,4e-05]
[1756458634950,2.79530612,109860.0,109850.0,4e-05]
[1756458635600,2.81484058,109860.0,109850.0,4e-05]
[1756458635835,2.9031369,109860.0,109850.0,4e-05]
[1756458637173,2.92747032,109860.0,109850.0,4e-05]
[1756458637375,2.99143322,109860.0,109850.0,4e-05]
[1756458637582,3.01576664,109860.0,109850.0,4e-05]
[1756458637996,3.01468664,109860.0,109850.0,4e-05]
[1756458638207,3.01868664,109860.0,109850.0,4e-05]
[1756458638420,2.99335322,109860.0,109850.0,4e-05]
[1756458638849,8.07268664,109860.0,109850.0,4e-05]
[1756458639064,8.15514731,109860.0,109850.0,4e-05]
[1756458639501,8.12268664,109860.0,109850.0,4e-05]
[1756458641620,8.07268664,109860.0,109850.0,4e-05]
[1756458641831,6.95972801,109860.0,109850.0,4e-05]
[1756458643130,7.83623322,109860.0,109850.0,4e-05]
[1756458643500,7.99831322,109860.0,109850.0,4e-05]
[1756458643773,7.9728409,109860.0,109850.0,4e-05]
[1756458643952,7.99817452,109860.0,109850.0,4e-05]
[1756458644627,8.02555552,109860.0,109850.0,4e-05]
[1756458645636,6.98693031,109860.0,109850.0,4e-05]
[1756458646808,8.02155552,109860.0,109850.0,4e-05]
[1756458647229,8.0076635,109860.0,109850.0,4e-05]
[1756458647414,8.0245467,109860.0,109850.0,4e-05]
[1756458647814,6.98592149,109860.0,109850.0,4e-05]
[1756458648041,6.98092149,109860.0,109850.0,4e-05]
[1756458648284,6.98392149,109860.0,109850.0,4e-05]
[1756458648494,6.82184149,109860.0,109850.0,4e-05]
[1756458648644,1.98388149,109860.0,109850.0,0.00518]
[1756458648851,1.96434703,109860.0,109850.0,0.00518]
[1756458649444,1.96434703,109860.0,109850.0,4e-05]
[1756458649884,1.96434703,109860.0,109850.0,0.00312]
[1756458651089,1.96434703,109860.0,109850.0,4e-05]
[1756458651264,3.00297224,109860.0,109850.0,4e-05]
[1756458652320,3.02242538,109860.0,109850.0,4e-05]
[1756458653525,3.04808837,109860.0,109850.0,4e-05]
[1756458654275,3.03120517,109860.0,109850.0,4e-05]
[1756458654491,3.02244396,109860.0,109850.0,4e-05]
[1756458658016,3.02228396,109860.0,109850.0,4e-05]
[1756458660360,2.86040396,109860.0,109850.0,4e-05]
[1756458660543,3.02228396,109860.0,109850.0,4e-05]
[1756458660766,2.86040396,109860.0,109850.0,4e-05]
[1756458660990,1.98365875,109860.0,109850.0,0.00518]
[1756458661196,1.98361875,109860.0,109850.0,0.00518]
[1756458661815,3.02224396,109860.0,109850.0,4e-05]
[1756458662356,3.04657738,109860.0,109850.0,4e-05]
[1756458662562,3.02224396,109860.0,109850.0,4e-05]
[1756458663393,3.04657738,109860.0,109850.0,4e-05]
[1756458664057,3.04661331,109860.0,109850.0,4e-05]
[1756458664477,3.04662021,109860.0,109850.0,4e-05]
[1756458664695,3.04662021,109860.0,109850.0,0.00518]
[1756458665114,3.04662021,109860.0,109850.0,0.00312]
[1756458665299,3.04662021,109860.0,109850.0,0.00518]
[1756458665963,3.04662021,109860.0,109850.0,0.00312]
[1756458666173,3.04662021,109860.0,109850.0,0.00518]
[1756458666617,1.846155,109860.0,109850.0,0.00518]
[1756458666819,2.007915,109860.0,109850.0,0.00518]
[1756458667238,1.83132236,109860.0,109850.0,0.00518]
[1756458667443,1.80698894,109860.0,109850.0,0.00518]
[1756458668467,1.64522894,109860.0,109850.0,0.00518]
[1756458668690,1.4445358,109860.0,109850.0,0.00518]
[1756458668896,1.4415358,109860.0,109850.0,0.00518]
[1756458669099,1.4465358,109860.0,109850.0,0.00518]
[1756458669732,1.2817758,109860.0,109850.0,0.00518]
[1756458669968,1.4434958,109860.0,109850.0,0.09347632]
[1756458670178,1.4454958,109860.0,109850.0,0.09347632]
[1756458670623,1.4454958,109860.0,109850.0,0.00518]
[1756458671999,0.40687059,109860.0,109850.0,0.00518]
[1756458672308,1.4454958,109860.0,109850.0,0.00518]
[1756458674787,1.44546494,109860.0,109850.0,0.00518]
[1756458675202,1.44546498,109860.0,109850.0,0.00518]
[1756458675427,2.91238651,109860.0,109850.0,4e-05]
[1756458675669,8.06968587,109860.0,109850.0,4e-05]
[1756458675885,8.09406019,109860.0,109850.0,4e-05]
[1756458676130,8.07698222,109860.0,109850.0,4e-05]
[1756458676778,8.07498222,109860.0,109850.0,4e-05]
[1756458677231,8.19593857,109860.0,109850.0,4e-05]
[1756458677467,8.19393857,109860.0,109850.0,4e-05]
[1756458677904,8.14793857,109860.0,109850.0,4e-05]
[1756458678147,8.14790126,109860.0,109850.0,4e-05]
[1756458678367,2.25933344,109840.0,109830.0,4e-05]
[1756458678578,2.42502381,109840.0,109830.0,0.00316]
[1756458678790,2.60710683,109840.0,109830.0,0.00316]
[1756458679538,2.44550683,109840.0,109830.0,0.00529]
[1756458679764,2.60706683,109840.0,109830.0,0.00529]
[1756458679973,2.44550683,109840.0,109830.0,0.00529]
[1756458680204,2.51877051,109840.0,109830.0,0.00529]
[1756458680353,2.54715351,109840.0,109830.0,0.00529]
[1756458681383,2.38559351,109840.0,109830.0,0.00529]
[1756458681608,2.54715351,109840.0,109830.0,0.00529]
[1756458682158,2.54715351,109840.0,109830.0,0.00316]
[1756458682362,2.63544983,109840.0,109830.0,0.00316]
[1756458682513,2.63544983,109840.0,109830.0,0.00529]
[1756458682716,2.63544983,109840.0,109830.0,0.00316]
[1756458682881,3.07754983,109840.0,109830.0,0.00316]
[1756458683092,3.07654983,109840.0,109830.0,0.00529]
[1756458683503,3.07754983,109840.0,109830.0,0.00529]
[1756458683952,3.08140165,109840.0,109830.0,0.00529]
[1756458684333,3.08240165,109840.0,109830.0,0.00529]
[1756458684841,2.99410533,109840.0,109830.0,0.00529]
[1756458685296,2.99405198,109840.0,109830.0,0.00529]
[1756458685494,2.99405198,109840.0,109830.0,4e-05]
[1756458685735,0.91680156,109840.0,109830.0,0.00529]
[1756458685892,2.99405198,109840.0,109830.0,0.00529]
[1756458686103,3.0823483,109840.0,109830.0,0.00529]
[1756458687016,3.0823483,109840.0,109830.0,0.00316]
[1756458687212,3.0823483,109840.0,109830.0,0.00529]
[1756458687456,2.99405198,109840.0,109830.0,0.00529]
[1756458688406,2.99305198,109840.0,109830.0,0.00316]
[1756458689233,0.91572156,109840.0,109830.0,0.00529]
[1756458689553,2.99197198,109840.0,109830.0,0.00529]
[1756458689756,2.99297198,109840.0,109830.0,0.00529]
[1756458690135,3.0812683,109840.0,109830.0,0.00529]
[1756458690344,3.0822683,109840.0,109830.0,0.00529]
[1756458691065,0.91672156,109840.0,109830.0,0.00529]
[1756458691318,1.79386677,109840.0,109830.0,0.00529]
[1756458691515,2.29534677,109840.0,109830.0,0.00529]
[1756458691658,2.28901964,109840.0,109830.0,0.00529]
[1756458691996,2.28801964,109840.0,109830.0,0.00529]
[1756458692443,3.32564485,109840.0,109830.0,0.00529]
[1756458692764,0.74691443,109840.0,109830.0,0.00529]
[1756458692964,1.91959664,109840.0,109830.0,0.00529]
[1756458693281,2.95822185,109840.0,109830.0,0.00529]
[1756458694302,2.95822185,109840.0,109830.0,0.00629]
[1756458694473,0.88097143,109840.0,109830.0,0.00629]
[1756458694674,1.91959664,109840.0,109830.0,0.00729]
[1756458694886,0.71953143,109840.0,109830.0,0.00729]
[1756458695121,0.88097143,109840.0,109830.0,0.00729]
[1756458695335,1.91959664,109840.0,109830.0,0.00729]
[1756458695742,1.91959761,109840.0,109830.0,0.00729]
[1756458697219,2.95822282,109840.0,109830.0,0.00729]
[1756458697432,1.75815761,109840.0,109830.0,0.00729]
[1756458697664,1.91959825,109840.0,109830.0,0.00729]
[1756458698292,2.95822346,109840.0,109830.0,0.00729]
[1756458698503,1.91959825,109840.0,109830.0,0.00729]
[1756458698714,2.95822346,109840.0,109830.0,0.00729]
[1756458700604,2.95822392,109840.0,109830.0,0.00729]
[1756458701125,2.98560192,109840.0,109830.0,0.00729]
[1756458701362,0.9083515,109840.0,109830.0,0.00729]
[1756458701570,2.98560192,109840.0,109830.0,0.00729]
[1756458702866,2.98560861,109840.0,109830.0,0.00729]
[1756458703277,2.99194321,109840.0,109830.0,0.00729]
[1756458703703,2.99194351,109840.0,109830.0,0.00729]
[1756458705209,2.96456551,109840.0,109830.0,0.00729]
[1756458705461,2.99194351,109840.0,109830.0,0.00729]
[1756458705673,2.96452551,109840.0,109830.0,0.00729]
[1756458706178,0.88727509,109840.0,109830.0,0.09558632]
[1756458706396,2.96452551,109840.0,109830.0,0.09558632]
[1756458706614,2.96457039,109840.0,109830.0,0.09558632]
[1756458706830,3.28766535,109840.0,109830.0,0.09558632]
[1756458707041,2.19586518,109840.0,109830.0,0.09558632]
[1756458707251,1.15723997,109840.0,109830.0,0.09558632]
[1756458707459,2.19586518,109840.0,109830.0,0.09558632]
[1756458707878,2.03450518,109840.0,109830.0,0.09558632]
[1756458708098,2.03450518,109840.0,109830.0,0.09786256]
[1756458708099,0.21377997,109840.0,109830.0,0.09786256]
[1756458708303,1.40742579,109840.0,109830.0,0.09786256]
[1756458708723,1.40742579,109840.0,109830.0,0.09558632]
[1756458708938,0.36880058,109840.0,109830.0,0.09558632]
[1756458709151,1.40742579,109840.0,109830.0,0.09558632]
[1756458709361,2.446051,109840.0,109830.0,0.09558632]
[1756458710191,1.40742579,109840.0,109830.0,0.09558632]
[1756458711993,2.446051,109840.0,109830.0,0.09345632]
[1756458712192,2.446051,109840.0,109830.0,0.09545632]
[1756458712408,2.4460502,109840.0,109830.0,0.09345632]
[1756458712621,2.4460502,109840.0,109830.0,0.09545632]
[1756458713222,2.4460502,109840.0,109830.0,0.00716]
[1756458713834,2.4460502,109840.0,109830.0,0.00204]
[1756458714396,2.4460502,109840.0,109830.0,0.00509]
[1756458714805,2.79239178,109840.0,109830.0,0.00104]
[1756458715840,2.79239178,109840.0,109830.0,4e-05]
[1756458717278,2.7924057,109840.0,109830.0,4e-05]
[1756458718325,2.6320457,109840.0,109830.0,4e-05]
[1756458718537,3.32376202,109840.0,109830.0,4e-05]
[1756458718745,3.35114402,109840.0,109830.0,4e-05]
[1756458719157,3.42218402,109840.0,109830.0,4e-05]
[1756458719765,3.3338877,109840.0,109830.0,4e-05]
[1756458721010,3.19205981,109840.0,109830.0,4e-05]
[1756458721216,3.35349981,109840.0,109830.0,4e-05]
[1756458721966,3.19205981,109840.0,109830.0,4e-05]
[1756458722173,3.35353981,109840.0,109830.0,4e-05]
[1756458722812,3.35345981,109840.0,109830.0,4e-05]
[1756458723681,3.19205981,109840.0,109830.0,4e-05]
[1756458723884,3.35341981,109840.0,109830.0,4e-05]
[1756458724092,3.28035613,109840.0,109830.0,4e-05]
[1756458724297,3.42218402,109840.0,109830.0,4e-05]
[1756458724506,3.42218402,109840.0,109830.0,0.00509]
[1756458724507,3.1725677,109840.0,109830.0,0.00509]
[1756458724724,3.3338877,109840.0,109830.0,0.00509]
[1756458725586,3.3328877,109840.0,109830.0,0.00509]
[1756458725806,3.3318877,109840.0,109830.0,0.00509]
[1756458726526,3.33188998,109840.0,109830.0,0.00509]
[1756458726949,3.3805692,109840.0,109830.0,0.00509]
[1756458730529,3.33189069,109840.0,109830.0,0.00509]
[1756458731174,3.33189069,109840.0,109830.0,0.00309]
[1756458733286,3.33189069,109840.0,109830.0,0.00509]
[1756458734120,3.33189069,109840.0,109830.0,4e-05]
[1756458735563,3.33189069,109840.0,109830.0,0.00509]
[1756458736039,3.33189069,109840.0,109830.0,4e-05]
[1756458736366,3.33289069,109840.0,109830.0,4e-05]
[1756458736783,3.33389069,109840.0,109830.0,4e-05]
[1756458736985,3.42218701,109840.0,109830.0,4e-05]
[1756458737197,3.39047176,109840.0,109830.0,4e-05]
[1756458737402,3.42219934,109840.0,109830.0,4e-05]
[1756458738904,3.28037199,109840.0,109830.0,4e-05]
[1756458739125,3.44169199,109840.0,109830.0,4e-05]
[1756458739753,3.44169242,109840.0,109830.0,4e-05]
[1756458739970,3.3533961,109840.0,109830.0,4e-05]
[1756458740181,3.33390345,109840.0,109830.0,4e-05]
[1756458740392,3.35340228,109840.0,109830.0,4e-05]
[1756458740619,3.19208228,109840.0,109830.0,4e-05]
[1756458740824,3.35340228,109840.0,109830.0,4e-05]
[1756458741029,3.35340228,109840.0,109830.0,0.00312]
[1756458741664,3.4416986,109840.0,109830.0,0.00312]
[1756458742945,3.2803786,109840.0,109830.0,0.00312]
[1756458743200,3.42219977,109840.0,109830.0,0.00524]
[1756458744267,3.44171935,109840.0,109830.0,0.00524]
[1756458744494,3.44171935,109840.0,109830.0,0.00312]
[1756458744710,3.44171935,109840.0,109830.0,4e-05]
[1756458746071,4.12654088,109840.0,109830.0,4e-05]
[1756458746283,9.17654746,109840.0,109830.0,4e-05]
[1756458746498,9.15088447,109840.0,109830.0,4e-05]
[1756458746704,2.59935002,109830.0,109820.0,1e-08]
[1756458746922,8.01284495,109830.0,109820.0,1e-08]
[1756458747517,5.96298353,109830.0,109820.0,1e-08]
[1756458747696,6.99314805,109830.0,109820.0,1e-08]
[1756458748060,6.99314805,109830.0,109820.0,8.558e-05]
[1756458748061,7.00358541,109830.0,109820.0,8.558e-05]
[1756458748491,7.00558541,109830.0,109820.0,8.558e-05]
[1756458748724,6.98121071,109830.0,109820.0,8.558e-05]
[1756458749133,7.02150612,109830.0,109820.0,8.558e-05]
[1756458751004,7.30232612,109830.0,109820.0,8.558e-05]
[1756458751209,7.26203071,109830.0,109820.0,8.558e-05]
[1756458751413,7.42331071,109830.0,109820.0,8.558e-05]
[1756458753038,7.26203071,109830.0,109820.0,8.558e-05]
[1756458753272,7.42331071,109830.0,109820.0,0.00528558]
[1756458753702,7.33501439,109830.0,109820.0,0.00528558]
[1756458754742,7.33501439,109830.0,109820.0,0.00316558]
[1756458754953,7.33500168,109830.0,109820.0,0.00316558]
[1756458755625,7.33500168,109830.0,109820.0,8.558e-05]
[1756458755829,7.423298,109830.0,109820.0,8.558e-05]
[1756458756672,7.423298,109830.0,109820.0,0.00316558]
[1756458757453,7.423298,109830.0,109820.0,8.558e-05]
[1756458758504,7.41692431,109830.0,109820.0,0.00316558]
[1756458758746,7.42325448,109830.0,109820.0,0.00316558]
[1756458758965,7.41692203,109830.0,109820.0,0.00316558]
[1756458759184,7.42325436,109830.0,109820.0,0.00316558]
[1756458759395,7.42320186,109830.0,109820.0,0.00316558]
[1756458759904,6.3893408,109830.0,109820.0,0.00316558]
[1756458760083,7.42796601,109830.0,109820.0,0.00528558]
[1756458760572,7.42796608,109830.0,109820.0,0.00528558]
[1756458763873,7.17838976,109830.0,109820.0,0.00528558]
[1756458764077,7.33966976,109830.0,109820.0,0.00528558]
[1756458768398,6.30104455,109830.0,109820.0,0.00528558]
[1756458768715,7.33966976,109830.0,109820.0,0.00528558]
[1756458769450,7.33972254,109830.0,109820.0,0.00528558]
[1756458772231,7.17844254,109830.0,109820.0,0.00528558]
[1756458772661,1.91136104,109830.0,109820.0,0.00528558]
[1756458772872,6.89190776,109830.0,109820.0,0.00528558]
[1756458773087,6.8919153,109830.0,109820.0,0.00528558]
[1756458773303,7.2514182,109830.0,109820.0,0.00528558]
[1756458773762,7.2494182,109830.0,109820.0,0.00528558]
[1756458773994,7.33571452,109830.0,109820.0,0.00528558]
[1756458774631,2.33571452,109830.0,109820.0,0.00528558]
[1756458777510,2.17451452,109830.0,109820.0,0.00528558]
[1756458777935,1.00070109,109830.0,109820.0,0.00528558]
[1756458778155,1.16186109,109830.0,109820.0,0.0935819]
[1756458778387,2.2004863,109830.0,109820.0,0.0935819]
[1756458778596,2.19572215,109830.0,109820.0,0.0935819]
[1756458779635,1.15709694,109830.0,109820.0,0.0935819]
[1756458779866,0.9641996,109830.0,109820.0,0.0935819]
[1756458780093,1.15711528,109830.0,109820.0,0.0935819]
[1756458780510,2.19574049,109830.0,109820.0,0.0935819]
[1756458780715,2.28403681,109830.0,109820.0,0.00528558]
[1756458781175,1.2454116,109830.0,109820.0,0.00528558]
[1756458781388,2.19570049,109830.0,109820.0,0.00528558]
[1756458782221,1.15707528,109830.0,109820.0,0.00528558]
[1756458782459,2.19569094,109830.0,109820.0,0.00528558]
[1756458787574,2.01359134,109830.0,109820.0,0.00528558]
[1756458787814,1.15706573,109830.0,109820.0,0.00528558]
[1756458788041,2.19569094,109830.0,109820.0,0.00528558]
[1756458788855,2.19565094,109830.0,109820.0,0.00528558]
[1756458789060,2.03457094,109830.0,109820.0,0.00528558]
[1756458789339,2.19561094,109830.0,109820.0,0.00528558]
[1756458789560,0.99593157,109830.0,109820.0,0.00528558]
[1756458789774,2.19559678,109830.0,109820.0,0.00528558]
[1756458789987,2.18925039,109830.0,109820.0,0.00528558]
[1756458792216,2.18925039,109830.0,109820.0,0.00316558]
[1756458792431,2.18925039,109830.0,109820.0,0.00519558]
[1756458795568,2.18925039,109830.0,109820.0,8.558e-05]
[1756458795786,2.19559469,109830.0,109820.0,8.558e-05]
[1756458796496,2.22297869,109830.0,109820.0,8.558e-05]
[1756458796720,2.22297281,109830.0,109820.0,8.558e-05]
[1756458797571,2.31126913,109830.0,109820.0,8.558e-05]
[1756458797780,2.39956545,109830.0,109820.0,8.558e-05]
[1756458798866,2.21078468,109830.0,109820.0,8.558e-05]
[1756458800231,2.1875221,109830.0,109820.0,8.558e-05]
[1756458800475,2.21079092,109830.0,109820.0,8.558e-05]
[1756458800701,2.21079302,109830.0,109820.0,8.558e-05]
[1756458800900,2.21071302,109830.0,109820.0,8.558e-05]
[1756458804038,2.0497542,109830.0,109820.0,8.558e-05]
[1756458804249,2.2107142,109830.0,109820.0,8.558e-05]
[1756458806617,2.2106742,109830.0,109820.0,8.558e-05]
[1756458806886,2.03408156,109830.0,109820.0,0.00518558]
[1756458807295,2.03408592,109830.0,109820.0,0.00518558]
[1756458808306,1.87316592,109830.0,109820.0,0.00518558]
[1756458808515,2.03404592,109830.0,109820.0,0.00518558]
[1756458810826,7.14426473,109830.0,109820.0,8.558e-05]
[1756458811030,7.16753623,109830.0,109820.0,8.558e-05]
[1756458811298,7.23013193,109830.0,109820.0,8.558e-05]
[1756458812153,7.23113193,109830.0,109820.0,8.558e-05]
[1756458812786,7.23213193,109830.0,109820.0,8.558e-05]
[1756458814487,7.23212799,109830.0,109820.0,8.558e-05]
[1756458815690,7.23208799,109830.0,109820.0,0.00518558]
[1756458816455,7.23208799,109830.0,109820.0,0.00301558]
[1756458816835,7.23208799,109830.0,109820.0,8.558e-05]
[1756458817242,7.07124799,109830.0,109820.0,8.558e-05]
[1756458817564,7.23204799,109830.0,109820.0,8.558e-05]
[1756458817974,7.23204312,109830.0,109820.0,8.558e-05]
[1756458821579,7.20877601,109830.0,109820.0,8.558e-05]
[1756458821782,7.23203384,109830.0,109820.0,8.558e-05]
[1756458822171,8.01733982,109830.0,109820.0,1e-08]
[1756458822430,7.00303121,109830.0,109820.0,1e-08]
[1756458824984,6.84223121,109830.0,109820.0,1e-08]
[1756458825183,7.00295228,109830.0,109820.0,1e-08]
[1756458828685,7.00295263,109830.0,109820.0,1e-08]
[1756458832190,6.97758008,109830.0,109820.0,1e-08]
[1756458832391,7.00295645,109830.0,109820.0,1e-08]
[1756458832833,6.84223645,109830.0,109820.0,1e-08]
[1756458833031,7.00287645,109830.0,109820.0,1e-08]
[1756458833327,7.00287645,109830.0,109820.0,0.00312001]
[1756458833905,0.52214936,109800.0,109790.0,0.07067082]
[1756458834107,1.75313503,109800.0,109790.0,0.07081326]
[1756458834281,1.75313503,109800.0,109790.0,0.07279326]
[1756458835245,1.75313503,109800.0,109790.0,0.07779326]
[1756458835961,1.75313503,109800.0,109790.0,0.08091326]
[1756458836365,0.55386982,109800.0,109790.0,0.08091326]
[1756458836593,1.75309503,109800.0,109790.0,0.08091326]
[1756458837684,1.75309503,109800.0,109790.0,0.01028244]
[1756458837885,1.76618035,109800.0,109790.0,0.01028244]
[1756458840387,0.72755514,109800.0,109790.0,0.01028244]
[1756458840607,1.76614035,109800.0,109790.0,0.01028244]
[1756458840990,1.74922277,109800.0,109790.0,0.01028244]
[1756458841201,1.76615745,109800.0,109790.0,0.01028244]
[1756458841824,1.76617313,109800.0,109790.0,0.01028244]
[1756458843720,1.85446945,109800.0,109790.0,0.01028244]
[1756458844254,1.85442945,109800.0,109790.0,0.01028244]
[1756458844879,2.89503466,109800.0,109790.0,0.01028244]
[1756458845750,2.89503466,109800.0,109790.0,0.00518244]
[1756458845961,2.98572098,109800.0,109790.0,0.00518244]
[1756458846135,3.03262547,109800.0,109790.0,0.00518244]
[1756458846684,3.03262547,109800.0,109790.0,0.00318244]
[1756458846892,3.03262547,109800.0,109790.0,0.00118244]
[1756458847561,3.03262547,109800.0,109790.0,0.00018244]
[1756458847562,3.47472547,109800.0,109790.0,0.00018244]
[1756458847784,3.50004207,109800.0,109790.0,0.00018244]
[1756458847919,3.05794207,109800.0,109790.0,0.00018244]
[1756458848103,8.05794207,109800.0,109790.0,1e-08]
[1756458848634,8.05894207,109800.0,109790.0,1e-08]
[1756458850465,8.05890207,109800.0,109790.0,1e-08]
[1756458852324,8.04195703,109800.0,109790.0,1e-08]
[1756458852535,8.05886445,109800.0,109790.0,1e-08]
[1756458852939,8.05886141,109800.0,109790.0,1e-08]
[1756458853282,8.03454481,109800.0,109790.0,1e-08]
[1756458853906,8.05886141,109800.0,109790.0,1e-08]
[1756458854326,8.03454481,109800.0,109790.0,1e-08]
[1756458856555,7.87406481,109800.0,109790.0,1e-08]
[1756458856765,8.03450481,109800.0,109790.0,1e-08]
[1756458858169,8.05882141,109800.0,109790.0,1e-08]
[1756458858712,5.97914099,109800.0,109790.0,1e-08]
[1756458858912,7.89599141,109800.0,109790.0,0.00518001]
[1756458859124,8.05639141,109800.0,109790.0,0.00518001]
[1756458859681,8.03207481,109800.0,109790.0,0.00518001]
[1756458863005,8.01516285,109800.0,109790.0,0.00518001]
[1756458863209,8.03205679,109800.0,109790.0,0.00518001]
[1756458863827,7.87165741,109800.0,109790.0,0.00518001]
[1756458864061,8.03201741,109800.0,109790.0,0.00518001]
[1756458864667,5.86449067,109800.0,109790.0,0.00518001]
[1756458864911,6.90311588,109800.0,109790.0,0.00518001]
[1756458865335,7.94174109,109800.0,109790.0,0.00518001]
[1756458866198,7.94372109,109800.0,109790.0,0.00304001]
[1756458866432,7.94372109,109800.0,109790.0,0.00518001]
[1756458866678,8.03201741,109800.0,109790.0,0.00518001]
[1756458867845,8.03003741,109800.0,109790.0,0.00518001]
[1756458868841,7.86967741,109800.0,109790.0,0.00518001]
[1756458869082,8.02999741,109800.0,109790.0,0.00518001]
[1756458870164,7.94170109,109800.0,109790.0,0.00518001]
[1756458870360,7.78140526,109800.0,109790.0,0.00518001]
[1756458870504,7.94168526,109800.0,109790.0,0.00518001]
[1756458873945,7.94171181,109800.0,109790.0,0.00518001]
[1756458875067,7.94369181,109800.0,109790.0,0.00518001]
[1756458875238,7.94171181,109800.0,109790.0,0.00518001]
[1756458875852,2.94171181,109800.0,109790.0,0.00518001]
[1756458876069,7.94171181,109800.0,109790.0,0.00518001]
[1756458876489,1.9020466,109800.0,109790.0,0.00518001]
[1756458876812,1.9030466,109800.0,109790.0,0.00518001]
[1756458877045,1.9020466,109800.0,109790.0,0.00518001]
[1756458877226,2.94067181,109800.0,109790.0,0.00518001]
[1756458877455,2.93220624,109800.0,109790.0,0.00518001]
[1756458877637,2.9396784,109800.0,109790.0,0.00518001]
[1756458877853,2.9406784,109800.0,109790.0,0.00518001]
[1756458878061,2.9426584,109800.0,109790.0,0.00518001]
[1756458878258,2.9416584,109800.0,109790.0,0.00518001]
[1756458879820,2.9416584,109800.0,109790.0,1e-08]
[1756458880034,3.03234472,109800.0,109790.0,1e-08]
[1756458881204,3.03334472,109800.0,109790.0,1e-08]
[1756458881628,3.03434472,109800.0,109790.0,1e-08]
[1756458882054,3.03195472,109800.0,109790.0,1e-08]
[1756458883433,0.9546243,109800.0,109790.0,0.00304001]
[1756458883637,3.03187472,109800.0,109790.0,1e-08]
[1756458884609,2.87173129,109800.0,109790.0,1e-08]
[1756458884818,2.87173129,109800.0,109790.0,0.00518001]
[1756458885032,3.02987129,109800.0,109790.0,0.00518001]
[1756458886100,2.94157497,109800.0,109790.0,0.00518001]
[1756458887922,2.7188391,109800.0,109790.0,0.00518001]
[1756458888317,2.90098919,109800.0,109790.0,0.00518001]
[1756458888542,2.90296919,109800.0,109790.0,0.00518001]
[1756458890332,2.90296919,109800.0,109790.0,1e-08]
[1756458890756,2.90296919,109800.0,109790.0,0.00525001]
[1756458891704,2.90297022,109800.0,109790.0,0.00525001]
[1756458891966,2.6525739,109800.0,109790.0,0.00525001]
[1756458892175,1.4745752,109800.0,109790.0,0.00525001]
[1756458893203,0.27490999,109800.0,109790.0,0.00525001]
[1756458893419,1.45406371,109800.0,109790.0,0.00525001]
[1756458893623,1.45306371,109800.0,109790.0,0.00525001]
[1756458894090,1.79306371,109800.0,109790.0,0.00525001]